bitfinex-derivatives/quotes_BTCF0:USTF0_20251219
["timestamp","ask_amount","ask_price","bid_price","bid_amount"]
[1766165414723,0.02681289,87733.0,87706.0,0.0114078]
[1766165414909,9.4e-07,87734.0,87707.0,0.00152]
[1766165415110,9.4e-07,87734.0,87723.0,0.0114057]
[1766165415318,9.4e-07,87734.0,87729.0,0.0114049]
[1766165415723,9.4e-07,87734.0,87725.0,0.0114055]
[1766165416023,9.4e-07,87734.0,87724.0,0.00592]
[1766165417118,9.4e-07,87734.0,87732.0,0.0114046]
[1766165417319,0.0114008,87762.0,87737.0,0.0114039]
[1766165417618,0.05917675,87767.0,87743.0,0.0114031]
[1766165417619,0.02680779,87761.0,87743.0,0.0114031]
[1766165417813,0.0114014,87757.0,87738.0,0.00508]
[1766165418013,0.0114017,87755.0,87738.0,0.00508]
[1766165418208,0.0114015,87756.0,87728.0,0.00592]
[1766165418410,0.00017094,87751.0,87733.0,0.00017094]
[1766165418610,0.00017094,87751.0,87734.0,0.0114043]
[1766165418826,0.00017094,87751.0,87737.0,0.0114039]
[1766165419014,0.00017094,87751.0,87728.0,0.00529261]
[1766165419414,0.0114023,87750.0,87728.0,0.01669771]
[1766165419622,0.0114023,87750.0,87728.0,0.00529261]
[1766165419926,0.0114023,87750.0,87729.0,0.00592]
[1766165420125,0.0114023,87750.0,87731.0,0.00017094]
[1766165420526,0.0114026,87748.0,87731.0,0.00017094]
[1766165420823,0.011403,87745.0,87731.0,0.00017094]
[1766165421021,0.0114035,87741.0,87731.0,0.00017094]
[1766165421516,0.011403,87745.0,87731.0,0.00017094]
[1766165422321,0.0114036,87740.0,87731.0,0.00017094]
[1766165422531,0.0114042,87735.0,87679.0,0.0114114]
[1766165422721,0.00592,87744.0,87679.0,0.0114114]
[1766165422722,0.28450712,87730.0,87697.0,0.0114091]
[1766165423022,0.03270914,87729.0,87690.0,0.28450712]
[1766165423222,0.0114057,87723.0,87691.0,0.00436]
[1766165423417,0.00017094,87716.0,87703.0,0.0114083]
[1766165423934,0.00017094,87716.0,87698.0,0.00017094]
[1766165424426,0.0114068,87715.0,87698.0,0.00017094]
[1766165424622,0.00017094,87716.0,87698.0,0.00017094]
[1766165424623,0.0114072,87712.0,87698.0,0.00017094]
[1766165424824,0.0114074,87711.0,87698.0,0.00017094]
[1766165425020,0.0114081,87705.0,87673.0,1.45448]
[1766165425215,0.28450712,87710.0,87677.0,0.0114117]
[1766165425621,0.0114091,87697.0,87675.0,0.011412]
[1766165425832,0.0114087,87701.0,87678.0,0.0114116]
[1766165426032,0.00017104,87698.0,87678.0,0.0114116]
[1766165426226,0.01158004,87698.0,87674.0,0.017332]
[1766165426528,0.0114094,87696.0,87674.0,0.017332]
[1766165427018,0.00017104,87698.0,87646.0,0.0114157]
[1766165427223,0.011411,87683.0,87657.0,0.0114143]
[1766165427422,0.011411,87683.0,87649.0,1.45456]
[1766165427423,0.0114113,87681.0,87655.0,0.00168]
[1766165427623,0.28450712,87680.0,87649.0,1.45456]
[1766165427830,0.0114129,87669.0,87649.0,1.46048]
[1766165428232,0.00592,87670.0,87650.0,0.0114152]
[1766165428529,9.492e-05,87669.0,87649.0,0.00592]
[1766165429127,9.492e-05,87669.0,87624.0,0.0114186]
[1766165429428,9.492e-05,87669.0,87640.0,0.0114164]
[1766165429632,0.011414,87660.0,87641.0,0.00432]
[1766165429833,0.0114163,87642.0,87623.0,0.00013349]
[1766165430035,0.0114166,87640.0,87623.0,0.00013349]
[1766165430335,0.00017114,87640.0,87623.0,0.00030463]
[1766165430521,0.00017114,87640.0,87623.0,0.01172333]
[1766165430728,0.00017114,87640.0,87626.0,0.0114183]
[1766165431034,0.00012,87652.0,87628.0,0.011418]
[1766165431329,0.28450712,87670.0,87623.0,0.00030463]
[1766165431538,0.02669098,87669.0,87644.0,0.0114159]
[1766165431722,0.02669098,87669.0,87630.0,0.28450712]
[1766165431723,0.0114147,87655.0,87633.0,0.00432]
[1766165431918,0.00017114,87653.0,87635.0,0.00017114]
[1766165432119,0.28450712,87650.0,87623.0,0.00133349]
[1766165432317,0.0114159,87645.0,87623.0,0.00133349]
[1766165432523,0.00592,87644.0,87623.0,0.00013349]
[1766165433129,0.00592,87644.0,87625.0,0.00017114]
[1766165433526,0.00017114,87653.0,87632.0,0.0114175]
[1766165433829,0.00017114,87653.0,87631.0,0.0114177]
[1766165434035,0.00436,87652.0,87625.0,0.00453114]
[1766165434219,0.00436,87652.0,87627.0,0.0114182]
[1766165434424,0.00436,87652.0,87625.0,0.00453114]
[1766165434618,0.00017114,87653.0,87625.0,0.00453114]
[1766165434821,0.00017114,87653.0,87629.0,0.0114179]
[1766165435129,4e-08,87653.0,87630.0,0.28450712]
[1766165435336,4e-08,87653.0,87646.0,0.0114157]
[1766165435725,4e-08,87653.0,87638.0,0.00592]
[1766165435919,4e-08,87653.0,87639.0,0.0114166]
[1766165436319,4e-08,87653.0,87638.0,0.00592]
[1766165436518,4e-08,87653.0,87639.0,0.0114167]
[1766165436737,4e-08,87653.0,87638.0,0.00592]
[1766165437035,4e-08,87653.0,87630.0,0.0114178]
[1766165437235,4e-08,87653.0,87632.0,0.0114176]
[1766165437434,0.28450712,87642.0,87599.0,0.0114218]
[1766165437633,0.28450712,87650.0,87580.0,0.28450712]
[1766165437634,0.28450712,87630.0,87605.0,0.011421]
[1766165437933,0.00592,87629.0,87605.0,0.011421]
[1766165438133,0.011417,87637.0,87596.0,0.00432]
[1766165438333,0.28450712,87640.0,87611.0,0.0114203]
[1766165438631,0.00017114,87634.0,87617.0,1.14e-06]
[1766165439035,0.00592,87633.0,87617.0,1.14e-06]
[1766165439234,0.00592,87632.0,87617.0,1.14e-06]
[1766165439841,0.28450712,87630.0,87617.0,1.14e-06]
[1766165440222,0.29592502,87630.0,87617.0,1.14e-06]
[1766165440733,0.00017114,87634.0,87617.0,1.14e-06]
[1766165440931,0.00592,87633.0,87617.0,1.14e-06]
[1766165441131,0.0173375,87633.0,87617.0,1.14e-06]
[1766165441333,0.0114179,87630.0,87617.0,1.14e-06]
[1766165441526,0.00592,87632.0,87617.0,1.14e-06]
[1766165441726,0.0114182,87628.0,87617.0,1.14e-06]
[1766165442230,0.00592,87627.0,87617.0,1.14e-06]
[1766165443038,0.0114194,87619.0,87617.0,1.14e-06]
[1766165443232,0.0114202,87612.0,87580.0,0.00010164]
[1766165443536,0.01154533,87611.0,87580.0,0.00010164]
[1766165443928,0.00012503,87611.0,87580.0,0.00010164]
[1766165444237,0.00017124,87604.0,87580.0,0.00010164]
[1766165444436,0.00017124,87604.0,87582.0,0.011424]
[1766165444630,0.011422,87598.0,87580.0,0.00010164]
[1766165444830,0.00592,87603.0,87580.0,0.00010164]
[1766165445034,0.00017124,87604.0,87580.0,0.00010164]
[1766165445228,0.00017124,87604.0,87581.0,0.11416437]
[1766165445229,4e-08,87604.0,87581.0,0.11416437]
[1766165445427,4e-08,87604.0,87580.0,0.00010164]
[1766165445628,4e-08,87604.0,87580.0,0.28460876]
[1766165445826,4e-08,87604.0,87580.0,0.00010164]
[1766165446027,4e-08,87604.0,87581.0,0.0114242]
[1766165446327,4e-08,87604.0,87595.0,0.0114224]
[1766165446526,4e-08,87604.0,87590.0,0.011423]
[1766165446725,4e-08,87604.0,87584.0,0.00017124]
[1766165446930,0.00432004,87604.0,87584.0,0.00017124]
[1766165447130,0.00432004,87604.0,87592.0,0.0114227]
[1766165447131,4e-08,87604.0,87592.0,0.0114227]
[1766165447434,4e-08,87604.0,87587.0,0.0171434]
[1766165447630,4e-08,87604.0,87587.0,0.00572]
[1766165447838,4e-08,87604.0,87584.0,0.00017124]
[1766165448834,0.00432,87603.0,87560.0,0.28450712]
[1766165449028,4e-08,87604.0,87560.0,0.28450712]
[1766165449029,4e-08,87604.0,87577.0,0.0114247]
[1766165449222,4e-08,87604.0,87570.0,0.28450712]
[1766165449433,4e-08,87604.0,87582.0,0.0114241]
[1766165449628,4e-08,87604.0,87585.0,0.0114237]
[1766165449830,4e-08,87604.0,87580.0,0.00592]
[1766165450029,4e-08,87604.0,87590.0,0.0114231]
[1766165450227,0.28450712,87620.0,87590.0,0.0114231]
[1766165450228,0.28450712,87640.0,87591.0,0.00592]
[1766165450434,0.0114144,87657.0,87610.0,0.28450712]
[1766165450435,0.0114162,87643.0,87610.0,0.28450712]
[1766165450733,0.28450712,87660.0,87620.0,0.28450712]
[1766165450924,0.0570479,87694.0,87596.0,0.0685338]
[1766165450925,0.0114136,87663.0,87621.0,0.00592]
[1766165451124,0.01240749,87710.0,87630.0,0.28450712]
[1766165451125,0.00488,87662.0,87630.0,0.28450712]
[1766165451326,0.00488,87662.0,87621.0,0.12711414]
[1766165451327,0.00017114,87655.0,87621.0,0.11412072]
[1766165451530,0.0114162,87643.0,87609.0,0.00592]
[1766165451729,0.00017114,87635.0,87610.0,0.00592]
[1766165451931,0.0114179,87630.0,87606.0,0.0114209]
[1766165452137,0.0114184,87626.0,87602.0,0.00224]
[1766165452331,0.0044,87629.0,87602.0,0.00224]
[1766165453141,0.011419,87621.0,87602.0,0.00224]
[1766165453335,0.011419,87621.0,87596.0,0.0114222]
[1766165453336,0.28450712,87620.0,87567.0,0.011426]
[1766165453539,0.28450712,87620.0,87532.0,0.08127824]
[1766165453540,0.00010869,87571.0,87565.0,0.00216]
[1766165454036,0.00010869,87571.0,87552.0,1.4562]
[1766165454231,0.00010869,87571.0,87559.0,0.00592]
[1766165454437,0.00010869,87571.0,87563.0,0.0114265]
[1766165454632,0.28450712,87600.0,87569.0,0.0114258]
[1766165454832,0.03260565,87599.0,87559.0,0.00592]
[1766165455050,0.0114237,87586.0,87560.0,0.011427]
[1766165455235,0.28450712,87570.0,87509.0,0.0114336]
[1766165455447,0.28450712,87600.0,87456.0,0.09171246]
[1766165455448,0.28450712,87530.0,87456.0,0.09171246]
[1766165455740,0.28450712,87500.0,87475.0,0.011438]
[1766165455943,0.28450712,87500.0,87437.0,0.0114429]
[1766165455944,0.28450712,87485.0,87424.0,0.0114447]
[1766165456136,0.28450712,87485.0,87390.0,0.08127824]
[1766165456137,0.006,87484.0,87410.0,0.0572327]
[1766165456337,0.006,87484.0,87438.0,0.0114429]
[1766165456338,1.62e-06,87439.0,87438.0,0.0114429]
[1766165456542,0.0114341,87506.0,87438.0,0.006]
[1766165456843,0.057156,87528.0,87456.0,0.0114404]
[1766165456844,1.45636,87500.0,87456.0,0.0114404]
[1766165457038,1.45636,87500.0,87433.0,0.0572175]
[1766165457039,0.00017144,87487.0,87458.0,0.0114402]
[1766165457232,0.00017144,87487.0,87439.0,0.11432229]
[1766165457432,0.006,87486.0,87427.0,0.0572217]
[1766165457644,0.006,87486.0,87418.0,0.0572277]
[1766165457645,0.0174367,87486.0,87438.0,0.0114428]
[1766165457938,0.00017144,87471.0,87438.0,0.0114428]
[1766165458135,0.00017144,87471.0,87428.0,0.006]
[1766165458136,0.00017144,87471.0,87432.0,0.0114437]
[1766165458335,0.00017144,87471.0,87431.0,0.0114438]
[1766165458532,0.00017144,87471.0,87428.0,0.006]
[1766165458533,4e-08,87471.0,87440.0,0.5725584]
[1766165458736,1.5,87529.0,87450.0,0.0572069]
[1766165458737,0.0114328,87516.0,87450.0,0.0572069]
[1766165459041,0.0571454,87545.0,87450.0,0.0572069]
[1766165459042,1.45688,87546.0,87501.0,0.0114346]
[1766165459336,0.5725584,87560.0,87495.0,0.0114354]
[1766165459337,0.0114302,87536.0,87495.0,0.0114354]
[1766165459532,0.006,87536.0,87497.0,0.0114351]
[1766165459735,0.00017144,87525.0,87508.0,0.00017144]
[1766165460240,0.00017144,87525.0,87470.0,0.5725584]
[1766165460241,0.0114332,87513.0,87473.0,0.0114383]
[1766165460541,0.0571655,87514.0,87451.0,0.11426416]
[1766165460838,0.0114337,87509.0,87467.0,0.0114391]
[1766165461040,0.05917675,87560.0,87497.0,0.0114351]
[1766165461240,0.0114301,87537.0,87498.0,0.00236]
[1766165461544,0.00017144,87526.0,87498.0,0.12810357]
[1766165461742,1.4685873,87558.0,87518.0,0.0114324]
[1766165462038,1.4685873,87558.0,87500.0,0.5725584]
[1766165462039,1.45716,87558.0,87519.0,0.006]
[1766165462344,0.006,87559.0,87520.0,0.0137521]
[1766165462536,0.0174271,87559.0,87522.0,0.0114319]
[1766165462737,0.00017144,87549.0,87532.0,0.00017144]
[1766165463341,0.0114292,87544.0,87490.0,0.5725584]
[1766165463542,0.0114283,87550.0,87491.0,1.46336]
[1766165463842,0.0114283,87550.0,87501.0,0.11423284]
[1766165464041,0.0114291,87544.0,87501.0,0.0114346]
[1766165464247,0.0114291,87544.0,87506.0,0.0114339]
[1766165464445,0.0114291,87544.0,87507.0,1.4574]
[1766165464747,0.00017134,87534.0,87507.0,0.11425894]
[1766165465047,0.00017134,87534.0,87480.0,0.5725584]
[1766165465048,0.0114317,87524.0,87488.0,1.4574]
[1766165465232,0.00017134,87515.0,87489.0,1.4634]
[1766165465437,0.00017134,87515.0,87492.0,0.11425241]
[1766165465749,0.00017134,87515.0,87493.0,0.006]
[1766165466241,0.00017134,87515.0,87488.0,0.11428114]
[1766165466446,0.0114336,87510.0,87460.0,0.5725584]
[1766165466638,0.00017144,87494.0,87467.0,0.0114391]
[1766165466840,0.00236,87515.0,87472.0,0.12589108]
[1766165467050,0.00236,87515.0,87472.0,0.00017144]
[1766165467343,0.0114347,87501.0,87472.0,0.00017144]
[1766165467553,0.0114353,87496.0,87473.0,0.00236]
[1766165467740,0.00017144,87493.0,87474.0,0.00104]
[1766165468248,0.00017144,87493.0,87480.0,0.0114374]
[1766165468447,0.0114326,87518.0,87480.0,0.0114374]
[1766165468650,0.0114326,87518.0,87479.0,0.0114375]
[1766165468847,1.4576,87532.0,87481.0,0.11430596]
[1766165469152,0.006,87534.0,87496.0,0.0114353]
[1766165469342,0.00017144,87524.0,87506.0,0.00017144]
[1766165469743,1.45768,87543.0,87506.0,0.00017144]
[1766165469942,0.0114296,87540.0,87503.0,0.0114343]
[1766165470149,0.00292,87545.0,87500.0,1.45772]
[1766165470340,0.00292,87545.0,87501.0,0.006]
[1766165470544,0.00292,87545.0,87502.0,0.006]
[1766165470851,0.0114313,87528.0,87515.0,0.00017144]
[1766165471041,0.00017144,87532.0,87515.0,0.00017144]
[1766165471648,0.00017144,87532.0,87516.0,0.00564]
[1766165471841,0.00017144,87532.0,87517.0,0.006]
[1766165472848,0.00017144,87532.0,87518.0,0.0114324]
[1766165473048,0.0114277,87555.0,87518.0,0.0114324]
[1766165473440,1.4578,87560.0,87522.0,0.0114319]
[1766165473641,0.0174272,87559.0,87526.0,0.0114313]
[1766165473847,0.0114278,87555.0,87527.0,0.00464]
[1766165474146,0.00017133,87550.0,87532.0,0.00017133]
[1766165474344,0.00017133,87550.0,87534.0,0.0114303]
[1766165474548,0.00017133,87550.0,87532.0,0.00017133]
[1766165474848,0.0114291,87544.0,87521.0,0.00068]
[1766165475054,0.00489133,87550.0,87521.0,0.00068]
[1766165475348,0.00017133,87550.0,87521.0,0.00068]
[1766165475539,0.00017133,87550.0,87504.0,0.0114342]
[1766165475853,0.00017133,87550.0,87520.0,0.0114321]
[1766165476156,0.00017133,87550.0,87518.0,0.00017133]
[1766165476157,0.00017133,87550.0,87522.0,0.0114319]
[1766165476342,0.01159963,87550.0,87521.0,0.00472]
[1766165476852,0.0114284,87549.0,87522.0,0.002]
[1766165477439,0.0114302,87536.0,87518.0,0.00017133]
[1766165477639,0.00017133,87550.0,87518.0,0.00017133]
[1766165477844,0.0114312,87528.0,87518.0,0.00017133]
[1766165478042,0.00017133,87532.0,87518.0,0.00017133]
[1766165478549,0.00017133,87532.0,87512.0,0.006]
[1766165478749,0.00576,87534.0,87512.0,0.006]
[1766165478949,0.0114313,87527.0,87512.0,0.006]
[1766165479550,0.0114313,87527.0,87511.0,0.00017133]
[1766165479744,0.00017133,87528.0,87510.0,0.01160473]
[1766165479939,0.0114285,87549.0,87510.0,0.00017133]
[1766165480144,0.0114285,87549.0,87508.0,0.006]
[1766165480145,0.011427,87560.0,87512.0,0.0114332]
[1766165480445,0.0114265,87564.0,87536.0,0.01143]
[1766165480647,0.0114265,87564.0,87537.0,0.00352]
[1766165480848,0.0114269,87561.0,87537.0,0.00352]
[1766165481047,0.0114269,87561.0,87521.0,1.45776]
[1766165481048,0.00017133,87559.0,87542.0,3e-08]
[1766165481250,0.011429,87545.0,87517.0,0.0114326]
[1766165481443,0.0114272,87559.0,87518.0,0.0046]
[1766165481645,0.0046,87561.0,87519.0,0.0046]
[1766165481849,0.0114251,87575.0,87524.0,0.0114316]
[1766165481850,0.0114256,87571.0,87524.0,0.0114316]
[1766165482148,0.00017133,87556.0,87544.0,0.011429]
[1766165482346,0.0114251,87575.0,87547.0,0.0114286]
[1766165482540,0.0160246,87579.0,87550.0,0.0114282]
[1766165482744,0.0114254,87573.0,87545.0,0.006]
[1766165482945,0.0114252,87574.0,87545.0,0.0174289]
[1766165483145,0.0046,87581.0,87545.0,0.0174289]
[1766165483348,0.00017133,87572.0,87554.0,0.00017133]
[1766165483848,0.0114246,87578.0,87554.0,0.00017133]
[1766165484048,0.0114236,87586.0,87554.0,0.00017133]
[1766165484250,0.0114248,87577.0,87554.0,0.00017133]
[1766165484449,0.0046,87588.0,87554.0,0.00017133]
[1766165484748,1.45772,87592.0,87510.0,0.0114334]
[1766165484749,0.0114264,87565.0,87538.0,0.0114298]
[1766165484955,0.00184,87576.0,87539.0,0.0046]
[1766165485144,0.0114261,87567.0,87540.0,0.0114296]
[1766165485340,0.0114265,87564.0,87539.0,0.0046]
[1766165485546,0.00184,87576.0,87543.0,0.00017133]
[1766165485741,0.0114274,87557.0,87543.0,3e-08]
[1766165485952,0.01159833,87560.0,87543.0,3e-08]
[1766165486340,0.00017133,87560.0,87543.0,3e-08]
[1766165486546,0.0114254,87573.0,87548.0,0.0114285]
[1766165486753,0.0114248,87577.0,87551.0,0.0114281]
[1766165486952,0.0114225,87594.0,87567.0,0.011426]
[1766165486953,0.0114231,87591.0,87567.0,0.011426]
[1766165487146,0.02693131,87590.0,87570.0,0.0114256]
[1766165487452,0.02694227,87589.0,87570.0,0.0114256]
[1766165487654,0.03853726,87588.0,87571.0,0.00017133]
[1766165487954,0.00017133,87588.0,87571.0,0.00017133]
[1766165488544,0.02696424,87587.0,87571.0,0.00017133]
[1766165488743,0.00017133,87588.0,87571.0,0.00017133]
[1766165488744,0.0114245,87580.0,87571.0,0.00017133]
[1766165489354,0.00017133,87588.0,87571.0,3e-08]
[1766165489556,0.0114248,87577.0,87571.0,3e-08]
[1766165489758,0.0114243,87581.0,87571.0,3e-08]
[1766165490449,0.00017133,87588.0,87571.0,3e-08]
[1766165491253,0.0114242,87582.0,87571.0,3e-08]
[1766165491456,0.00017133,87588.0,87571.0,3e-08]
[1766165491753,0.0114239,87584.0,87551.0,0.093974]
[1766165491955,0.0383663,87583.0,87559.0,0.011427]
[1766165492255,0.0114236,87587.0,87562.0,0.0114266]
[1766165492451,0.02693964,87586.0,87562.0,0.0114266]
[1766165492660,0.00017133,87588.0,87565.0,0.00017133]
[1766165492857,0.02694039,87587.0,87521.0,0.0114319]
[1766165493060,0.0114246,87579.0,87518.0,8.6e-05]
[1766165493252,1.48654039,87578.0,87531.0,0.0114306]
[1766165493451,0.0114279,87553.0,87532.0,0.00288]
[1766165493649,0.0114279,87553.0,87533.0,0.00568]
[1766165493853,0.006,87563.0,87518.0,8.6e-05]
[1766165493854,0.00017133,87552.0,87534.0,0.00017133]
[1766165494053,0.0114282,87551.0,87534.0,0.00017133]
[1766165494349,0.0114287,87547.0,87518.0,8.6e-05]
[1766165494553,0.0114335,87511.0,87476.0,1.45732]
[1766165494752,0.006,87513.0,87477.0,0.006]
[1766165494949,0.0114344,87503.0,87477.0,0.006]
[1766165495256,0.0114365,87488.0,87465.0,1.45736]
[1766165495454,9.07e-05,87487.0,87465.0,0.006]
[1766165495648,0.00017144,87485.0,87465.0,0.006]
[1766165495846,0.00017144,87485.0,87465.0,0.0174393]
[1766165496058,0.00017144,87485.0,87465.0,0.006]
[1766165496757,9.07e-05,87487.0,87465.0,0.006]
[1766165497247,9.07e-05,87487.0,87471.0,0.0114385]
[1766165497452,9.07e-05,87487.0,87474.0,0.0114382]
[1766165497651,9.07e-05,87487.0,87466.0,0.0114392]
[1766165497852,0.00017144,87485.0,87468.0,0.01161034]
[1766165498151,0.05938719,87530.0,87487.0,0.0114365]
[1766165498356,0.0114342,87505.0,87474.0,0.0114382]
[1766165498558,0.006,87512.0,87475.0,0.00452]
[1766165498755,0.03140452,87511.0,87459.0,0.24698902]
[1766165498954,0.02688452,87510.0,87471.0,0.0114385]
[1766165499163,0.00017144,87499.0,87482.0,0.00017144]
[1766165499657,0.01160644,87499.0,87482.0,0.00017144]
[1766165499965,0.0114358,87493.0,87482.0,0.00017144]
[1766165500147,0.0114352,87497.0,87482.0,0.00017144]
[1766165500347,0.0114356,87494.0,87474.0,0.00188]
[1766165500569,0.0114352,87498.0,87474.0,0.00188]
[1766165501054,0.0114356,87495.0,87474.0,0.00188]
[1766165501260,0.00589144,87499.0,87474.0,0.00188]
[1766165501261,0.0114353,87496.0,87474.0,0.00188]
[1766165501460,0.00589144,87499.0,87477.0,0.0114378]
[1766165501761,0.00017144,87497.0,87483.0,0.011437]
[1766165502153,0.00017144,87497.0,87477.0,0.0114378]
[1766165502361,0.00017144,87497.0,87476.0,0.00017144]
[1766165502850,0.01160674,87497.0,87476.0,0.00017144]
[1766165503056,0.01160674,87497.0,87460.0,0.00596]
[1766165503057,0.00017144,87497.0,87460.0,0.00596]
[1766165503258,0.0114367,87486.0,87460.0,0.00596]
[1766165503453,0.0114386,87472.0,87441.0,1.45796]
[1766165503653,0.0114386,87472.0,87440.0,9.897e-05]
[1766165503654,0.0114391,87468.0,87440.0,9.897e-05]
[1766165503850,0.0114397,87463.0,87440.0,9.897e-05]
[1766165504051,0.00017144,87460.0,87440.0,9.897e-05]
[1766165504253,0.00017144,87460.0,87404.0,1.458]
[1766165504450,0.00017154,87441.0,87401.0,0.00596]
[1766165504659,0.0114429,87438.0,87404.0,0.0114473]
[1766165504861,0.00017154,87441.0,87401.0,0.00596]
[1766165505065,0.00017154,87441.0,87429.0,0.0114441]
[1766165505256,9.897e-05,87440.0,87429.0,0.0114441]
[1766165505571,0.00012,87439.0,87413.0,0.0114461]
[1766165505761,0.00016,87438.0,87411.0,0.0114463]
[1766165505961,0.00016,87438.0,87400.0,0.53406004]
[1766165506269,1.4642,87437.0,87375.0,1.45824]
[1766165506564,0.00017154,87417.0,87392.0,0.0114488]
[1766165506751,1.45832,87445.0,87390.0,0.41967105]
[1766165506950,0.006,87444.0,87411.0,0.0114463]
[1766165507159,0.41967105,87450.0,87400.0,0.0114479]
[1766165507369,0.0114443,87428.0,87389.0,0.0114492]
[1766165507661,2.96432,87449.0,87384.0,0.01145]
[1766165507662,0.0114456,87418.0,87384.0,0.01145]
[1766165507862,0.0114456,87418.0,87370.0,0.00608443]
[1766165507863,0.00017154,87410.0,87392.0,0.00017154]
[1766165508365,0.00010501,87409.0,87392.0,0.00017154]
[1766165508862,0.006,87408.0,87370.0,8.443e-05]
[1766165509063,0.00010501,87409.0,87383.0,0.0114501]
[1766165509249,0.00010501,87409.0,87370.0,8.443e-05]
[1766165509454,0.00010501,87409.0,87387.0,0.0114495]
[1766165509650,0.006,87408.0,87370.0,8.443e-05]
[1766165510062,0.006,87408.0,87331.0,0.0114569]
[1766165510063,0.0114498,87386.0,87331.0,0.0114569]
[1766165510259,0.00017165,87367.0,87356.0,0.0114536]
[1766165510560,0.00017165,87370.0,87338.0,0.006]
[1766165510764,1.45876,87390.0,87339.0,1.45876]
[1766165510955,2e-08,87340.0,87339.0,1.57318498]
[1766165511267,0.41967105,87380.0,87339.0,0.4]
[1766165511457,0.006,87379.0,87353.0,0.011454]
[1766165511767,0.00017165,87375.0,87357.0,0.00017165]
[1766165512165,0.011447,87407.0,87364.0,0.0114525]
[1766165512367,0.006,87406.0,87379.0,0.0114506]
[1766165512568,0.006,87405.0,87385.0,0.0114498]
[1766165512757,0.006,87405.0,87370.0,0.41967105]
[1766165512758,0.0024,87406.0,87384.0,0.0114499]
[1766165512960,0.0024,87406.0,87365.0,0.0114524]
[1766165513157,0.00017165,87394.0,87377.0,5e-08]
[1766165513461,1.46516,87393.0,87345.0,0.0114551]
[1766165513659,0.0114513,87375.0,87340.0,0.0114557]
[1766165513858,1.46524,87392.0,87328.0,0.29133518]
[1766165513859,0.0114515,87373.0,87341.0,0.0114555]
[1766165514060,0.0114517,87371.0,87336.0,0.006]
[1766165514259,0.00017165,87362.0,87345.0,0.00017165]
[1766165514455,0.00017165,87362.0,87316.0,0.0114589]
[1766165514456,0.00352,87361.0,87316.0,0.0114589]
[1766165514764,0.00017165,87362.0,87329.0,0.0114572]
[1766165514964,0.00017165,87362.0,87316.0,0.11447214]
[1766165514965,0.00017165,87362.0,87333.0,0.0114567]
[1766165515272,0.00017165,87362.0,87329.0,1.464]
[1766165515457,0.00017165,87362.0,87330.0,1.4594]
[1766165515658,0.00017165,87362.0,87341.0,0.0114556]
[1766165515859,0.00017165,87362.0,87341.0,0.0046]
[1766165516061,0.00017165,87362.0,87316.0,0.0114588]
[1766165516062,0.00017165,87362.0,87329.0,0.006]
[1766165516266,0.00017165,87362.0,87344.0,0.0114552]
[1766165516658,0.0114506,87380.0,87344.0,0.0114552]
[1766165516865,0.00216,87395.0,87360.0,0.011453]
[1766165517069,0.00216,87395.0,87361.0,0.00452]
[1766165517070,0.0114502,87383.0,87361.0,0.00452]
[1766165517257,0.0046,87382.0,87341.0,0.00184]
[1766165517466,0.0114508,87378.0,87342.0,0.00184]
[1766165517761,0.00017175,87369.0,87351.0,0.00017175]
[1766165517966,0.00449175,87369.0,87351.0,0.00017175]
[1766165518276,0.0056,87368.0,87351.0,0.00017175]
[1766165518569,0.006,87367.0,87351.0,0.00017175]
[1766165518765,0.00017175,87369.0,87351.0,0.00017175]
[1766165518963,0.0114477,87402.0,87358.0,0.0114533]
[1766165518964,0.0114496,87388.0,87358.0,0.0114533]
[1766165519169,1.45976,87402.0,87315.0,9.855e-05]
[1766165519170,0.0046,87389.0,87315.0,9.855e-05]
[1766165519365,0.0046,87389.0,87326.0,1.46212]
[1766165519663,0.0046,87389.0,87332.0,0.24127687]
[1766165519868,1.46308,87388.0,87327.0,1.4598]
[1766165520058,0.00017175,87366.0,87349.0,1.75e-06]
[1766165520356,0.0114554,87343.0,87326.0,0.00232]
[1766165520562,0.0150948,87348.0,87326.0,0.00232]
[1766165520765,0.00099999,87410.0,87326.0,0.00232]
[1766165520766,0.006,87356.0,87338.0,0.011456]
[1766165520966,0.0114528,87363.0,87326.0,0.00232]
[1766165521171,0.011451,87376.0,87332.0,0.0114568]
[1766165521462,0.011451,87376.0,87327.0,0.006]
[1766165521463,0.00017175,87363.0,87354.0,0.0014855]
[1766165521668,0.00017175,87367.0,87358.0,0.0027421]
[1766165521864,0.0126919,87370.0,87358.0,0.0027421]
[1766165522060,0.00017175,87371.0,87361.0,0.0114529]
[1766165522266,0.0114484,87397.0,87371.0,0.0114516]
[1766165522469,0.0114453,87421.0,87366.0,0.00125664]
[1766165522470,0.006,87396.0,87366.0,0.00125664]
[1766165522668,0.0024,87402.0,87366.0,0.00125664]
[1766165522858,0.00048,87401.0,87384.0,8e-08]
[1766165523062,0.0114503,87382.0,87360.0,0.00488]
[1766165523262,0.0114515,87373.0,87362.0,0.00017164]
[1766165523475,0.00017164,87380.0,87362.0,0.00017164]
[1766165523663,0.0114472,87406.0,87362.0,0.00017164]
[1766165523664,0.0114471,87407.0,87371.0,0.00125666]
[1766165523974,0.0114469,87408.0,87377.0,0.0114508]
[1766165524171,0.0114489,87392.0,87356.0,0.00024]
[1766165524369,0.0572218,87428.0,87356.0,0.00024]
[1766165524370,0.0114498,87386.0,87357.0,0.0114535]
[1766165524670,0.0114498,87386.0,87356.0,0.00024]
[1766165524671,0.0114505,87381.0,87356.0,0.00024]
[1766165524867,0.00017164,87380.0,87363.0,0.00017164]
[1766165525362,0.0114508,87378.0,87363.0,0.00017164]
[1766165525967,0.006,87377.0,87363.0,0.00017164]
[1766165526167,0.0114509,87378.0,87363.0,0.00017164]
[1766165526468,0.00017164,87380.0,87363.0,0.00017164]
[1766165526869,0.0114511,87376.0,87363.0,0.00017164]
[1766165527068,0.00017164,87380.0,87363.0,0.00017164]
[1766165527271,0.0114507,87379.0,87363.0,0.00017164]
[1766165527465,0.00017164,87380.0,87363.0,0.00017164]
[1766165527976,0.0036,87379.0,87363.0,0.00017164]
[1766165528778,0.0114508,87378.0,87363.0,0.00017164]
[1766165528978,0.0114512,87375.0,87363.0,0.00017164]
[1766165529675,0.0036,87379.0,87363.0,0.00017164]
[1766165530276,0.0036,87379.0,87328.0,0.0114573]
[1766165530277,0.0114511,87376.0,87328.0,0.0114573]
[1766165530466,0.011455,87346.0,87321.0,0.0114582]
[1766165530667,0.00464,87347.0,87329.0,0.0114572]
[1766165530867,0.00376,87355.0,87318.0,0.0114586]
[1766165531073,0.00376,87355.0,87316.0,0.00512]
[1766165531074,0.0114516,87372.0,87316.0,0.11957445]
[1766165531276,0.006,87364.0,87344.0,0.0114552]